bitfinex/quotes_ETHUSD_20240824
["timestamp","ask_amount","ask_price","bid_price","bid_amount"]
[1724510187171,3.7069006,2762.8,2762.3,1.26697511]
[1724510187378,0.0873606,2762.8,2762.3,4.88706511]
[1724510187627,3.61937,2763.0,2762.3,4.88706511]
[1724510187786,0.08662715,2762.7,2762.4,2.82472351]
[1724510187991,3.61938,2762.9,2762.4,2.82472351]
[1724510188187,0.08659523,2762.6,2762.5,3.0]
[1724510188390,3.61938,2762.9,2762.5,3.0]
[1724510188600,0.08659523,2762.6,2762.5,3.0]
[1724510188902,3.61938,2762.9,2762.5,3.0]
[1724510189384,0.08643694,2762.8,2762.5,3.0]
[1724510189982,3.61928,2763.0,2762.5,3.0]
[1724510190198,0.08646885,2762.9,2762.5,3.0]
[1724510190867,0.08646885,2762.9,2762.5,4.43317686]
[1724510193514,0.08646885,2762.9,2762.5,8.05307686]
[1724510198509,0.08646885,2762.9,2762.6,2.2681]
[1724510198710,3.61889,2763.3,2762.6,2.2681]
[1724510198885,0.08107948,2763.2,2762.8,3.61941]
[1724510199226,3.61876,2763.4,2762.7,1.26697511]
[1724510199425,0.08104757,2763.1,2762.7,1.26697511]
[1724510199587,3.61876,2763.4,2762.8,0.35350751]
[1724510199783,0.08111139,2763.3,2762.9,3.61936]
[1724510199989,0.08111139,2763.3,2762.7,4.88649511]
[1724510199990,3.69997139,2763.3,2762.7,4.88649511]
[1724510200294,3.61901,2763.2,2762.7,3.61958]
[1724510200509,0.08104757,2763.1,2762.7,3.61958]
[1724510204228,0.08104757,2763.1,2762.6,5.88778]
[1724510204229,3.70016757,2763.1,2762.6,5.88778]
[1724510204401,3.70016757,2763.1,2762.5,3.0]
[1724510204402,3.61952,2762.8,2762.5,3.0]
[1724510204726,3.69881821,2762.7,2762.3,3.0]
[1724510205300,3.61981,2762.6,2762.3,3.0]
[1724510205500,0.0791528,2762.5,2762.3,3.0]
[1724510205895,0.0791528,2762.5,2762.2,7.45]
[1724510206613,3.6991428,2762.5,2762.2,7.45]
[1724510206805,3.62009,2762.4,2761.7,3.62088]
[1724510207009,3.62009,2762.4,2761.6,1.26697511]
[1724510207010,3.62038,2762.2,2761.6,1.26697511]
[1724510207199,3.62038,2762.2,2761.6,4.88798511]
[1724510207530,0.07888949,2762.1,2761.6,4.88798511]
[1724510207740,3.62038,2762.2,2761.6,6.71890462]
[1724510207938,0.07888949,2762.1,2761.8,4.88776511]
[1724510208120,3.62002,2762.5,2761.9,6.62067]
[1724510208433,0.07860475,2762.4,2762.0,1.26697511]
[1724510208830,2.4949,2762.6,2762.0,1.26697511]
[1724510209050,0.07834515,2762.3,2762.0,1.26697511]
[1724510209355,0.07831322,2762.2,2762.1,3.62035]
[1724510209654,6.11469,2762.6,2762.1,3.62035]
[1724510209811,0.07832291,2762.2,2762.1,3.62035]
[1724510210184,3.61979,2762.6,2762.1,3.62035]
[1724510210652,0.07843809,2762.5,2762.1,3.62032]
[1724510210847,0.07843809,2762.5,2762.2,3.62022]
[1724510211014,9.73407,2762.8,2762.2,3.62022]
[1724510211215,0.07840616,2762.4,2762.2,3.62022]
[1724510211423,9.73407,2762.8,2762.2,3.62022]
[1724510211622,0.07837423,2762.3,2762.2,3.62022]
[1724510211798,6.11447,2762.8,2762.2,3.62022]
[1724510211799,9.73407,2762.8,2762.2,3.62022]
[1724510211999,0.07825827,2762.7,2762.2,3.62022]
[1724510212394,3.69792827,2762.7,2762.2,3.62022]
[1724510219772,3.69792827,2762.7,2762.3,2.3501]
[1724510221321,3.61978,2762.6,2762.0,9.59118]
[1724510221526,0.07799903,2762.5,2762.0,10.850298]
[1724510222116,0.07799903,2762.5,2762.1,3.62036]
[1724510224061,0.07799903,2762.5,2762.2,3.62027]
[1724510224459,2.4949,2762.7,2762.2,3.62027]
[1724510224764,6.11461,2762.7,2762.2,3.62027]
[1724510224936,0.07803096,2762.6,2762.2,3.62027]
[1724510225769,0.07803096,2762.6,2762.0,7.229658]
[1724510225770,7.31772096,2762.6,2762.0,7.229658]
[1724510225945,7.31772096,2762.6,2762.0,9.59104]
[1724510226148,3.69783096,2762.6,2762.1,3.62043]
[1724510226726,3.69783096,2762.6,2762.0,9.59102]
[1724510226946,7.31769096,2762.6,2762.0,9.59102]
[1724510227518,3.69783096,2762.6,2762.0,9.59102]
[1724510227719,7.31769096,2762.6,2762.0,10.850122]
[1724510227919,7.31769096,2762.6,2762.0,7.229642]
[1724510228127,7.31769096,2762.6,2762.0,5.97054]
[1724510228421,3.61993,2762.5,2762.0,5.97054]
[1724510228725,0.07597378,2762.4,2762.0,5.97054]
[1724510229354,3.69607378,2762.4,2761.9,3.0]
[1724510229553,4.42766116,2762.4,2761.9,6.62068]
[1724510230484,3.69607378,2762.4,2761.9,6.62068]
[1724510230650,3.69607378,2762.4,2761.9,3.0]
[1724510231188,7.31619378,2762.4,2761.9,3.0]
[1724510231551,3.69607378,2762.4,2761.9,3.0]
[1724510231989,3.69607378,2762.4,2761.9,6.62066]
[1724510232755,3.69607378,2762.4,2762.0,3.62048]
[1724510232756,0.07597378,2762.4,2762.0,3.62048]
[1724510232967,3.61986,2762.6,2762.0,3.62048]
[1724510233160,0.07614618,2762.5,2762.1,3.62032]
[1724510233867,0.07614618,2762.5,2762.0,6.04158776]
[1724510234188,3.69611618,2762.5,2762.0,6.04158776]
[1724510236367,2.3116,2762.4,2762.0,4.89046251]
[1724510236580,0.07510452,2762.3,2762.0,3.62048]
[1724510237183,0.07510452,2762.3,2761.9,6.62069]
[1724510239712,0.07510452,2762.3,2761.5,7.45]
[1724510239713,2.3116,2762.1,2761.5,7.45]
[1724510240080,0.07497482,2762.0,2761.6,3.62102]
[1724510240823,3.69553482,2762.0,2761.6,3.62102]
[1724510243891,0.07497482,2762.0,2761.6,3.62102]
[1724510244505,0.07497482,2762.0,2761.5,11.07121]
[1724510244506,3.69565482,2762.0,2761.5,11.07121]
[1724510244697,3.69565482,2762.0,2761.5,12.34119251]
[1724510244876,0.07497482,2762.0,2761.5,12.34119251]
[1724510245086,0.07497482,2762.0,2761.6,3.62108]
[1724510248218,0.07497482,2762.0,2761.5,4.89119251]
[1724510249420,3.69554482,2762.0,2761.5,4.89119251]
[1724510250294,5.88585,2761.8,2761.3,4.89138251]
[1724510250719,0.07463192,2761.7,2761.3,4.89138251]
[1724510251018,5.88585,2761.8,2761.3,4.89138251]
[1724510251199,0.07463192,2761.7,2761.3,4.89138251]
[1724510251398,5.88585,2761.8,2761.3,4.89138251]
[1724510251608,0.07459997,2761.6,2761.4,3.62134]
[1724510251931,2.265,2761.8,2761.4,3.62134]
[1724510252435,0.07452047,2761.7,2761.4,3.62134]
[1724510252740,2.83267496,2761.8,2761.4,3.62134]
[1724510252936,0.07448853,2761.6,2761.4,3.62134]
[1724510253150,2.83267496,2761.8,2761.4,3.62134]
[1724510253350,0.07445658,2761.5,2761.4,3.62134]
[1724510253492,2.83267496,2761.8,2761.4,4.89132251]
[1724510253697,0.07445658,2761.5,2761.4,4.89132251]
[1724510253931,2.83267496,2761.8,2761.4,4.89132251]
[1724510254134,0.07445658,2761.5,2761.4,4.89132251]
[1724510254335,2.83267496,2761.8,2761.4,4.89132251]
[1724510254544,0.07445658,2761.5,2761.4,4.89132251]
[1724510254700,2.83267496,2761.8,2761.4,4.89132251]
[1724510254903,0.07445658,2761.5,2761.4,4.89132251]
[1724510255134,2.83267496,2761.8,2761.4,4.89132251]
[1724510255334,0.07445658,2761.5,2761.4,4.89132251]
[1724510255514,2.83267496,2761.8,2761.3,3.62139]
[1724510255515,6.45356496,2761.8,2761.3,3.62139]
[1724510255711,0.07445658,2761.5,2761.4,3.62135]
[1724510255922,2.83267496,2761.8,2761.4,3.62135]
[1724510256124,0.07445658,2761.5,2761.4,3.62135]
[1724510256336,2.83267496,2761.8,2761.4,3.62135]
[1724510256537,0.07445658,2761.5,2761.4,3.62135]
[1724510256719,2.83267496,2761.8,2761.4,3.62135]
[1724510256921,0.07445658,2761.5,2761.4,3.62135]
[1724510257255,0.07431862,2761.5,2761.4,3.62135]
[1724510257707,2.83267496,2761.8,2761.4,3.62135]
[1724510258340,0.07424455,2761.7,2761.4,3.62135]
[1724510258537,0.07424455,2761.7,2761.4,7.24263]
[1724510258716,2.83267496,2761.8,2761.4,3.62128]
[1724510258916,0.07421261,2761.6,2761.4,3.62128]
[1724510259128,2.83267496,2761.8,2761.4,4.89126251]
[1724510259631,0.07402323,2761.7,2761.4,4.89126251]
[1724510259808,2.83267496,2761.8,2761.5,3.62121]
[1724510260011,0.07402323,2761.7,2761.5,3.62121]
[1724510260242,2.83267496,2761.8,2761.5,3.62121]
[1724510260442,0.0738585,2761.7,2761.5,3.62121]
[1724510260647,2.83267496,2761.8,2761.5,3.62121]
[1724510260936,0.0738585,2761.7,2761.5,3.62121]
[1724510261443,0.07353921,2761.6,2761.5,3.62121]
[1724510261639,0.56767496,2761.8,2761.5,3.62121]
[1724510261844,0.07357115,2761.7,2761.5,3.62121]
[1724510262044,0.56767496,2761.8,2761.5,3.62121]
[1724510262263,0.07357115,2761.7,2761.5,3.62121]
[1724510262462,0.07357115,2761.7,2761.6,3.62108]
[1724510262631,0.56767496,2761.8,2761.6,3.62108]
[1724510262837,0.07357115,2761.7,2761.6,3.62108]
[1724510263012,0.56767496,2761.8,2761.6,3.62108]
[1724510263213,0.07358082,2761.7,2761.6,3.62108]
[1724510263547,0.56767496,2761.8,2761.6,3.62108]
[1724510263752,0.07358082,2761.7,2761.6,3.62108]
[1724510264065,0.56767496,2761.8,2761.6,3.62108]
[1724510264265,0.07358082,2761.7,2761.6,3.62108]
[1724510264611,0.56767496,2761.8,2761.6,3.62108]
[1724510264866,0.07358082,2761.7,2761.6,3.62108]
[1724510265362,0.56767496,2761.8,2761.6,3.62108]
[1724510265531,0.07358082,2761.7,2761.6,3.62108]
[1724510265865,0.56767496,2761.8,2761.6,3.62108]
[1724510266069,0.07358082,2761.7,2761.6,3.62108]
[1724510266590,0.07128082,2761.7,2761.6,3.62108]
[1724510266794,0.56767496,2761.8,2761.6,3.62108]
[1724510267091,0.07128082,2761.7,2761.6,3.621]
[1724510267459,0.56767496,2761.8,2761.6,3.621]
[1724510267700,0.07128082,2761.7,2761.6,3.621]
[1724510267992,0.56767496,2761.8,2761.6,3.621]
[1724510268194,0.07128082,2761.7,2761.6,3.621]
[1724510268502,0.56767496,2761.8,2761.6,3.621]
[1724510268801,0.07128082,2761.7,2761.6,3.621]
[1724510268978,0.56767496,2761.8,2761.6,3.621]
[1724510269495,0.07128082,2761.7,2761.6,3.621]
[1724510269795,0.56767496,2761.8,2761.6,3.621]
[1724510270137,0.0699499,2761.7,2761.6,3.621]
[1724510270340,0.56767496,2761.8,2761.6,3.621]
[1724510270551,0.06991598,2761.7,2761.6,3.621]
[1724510270997,0.56767496,2761.8,2761.6,3.621]
[1724510271200,0.06991598,2761.7,2761.6,3.621]
[1724510271541,3.62057,2762.0,2761.6,3.621]
[1724510271741,0.06991598,2761.7,2761.6,3.621]
[1724510271955,3.62057,2762.0,2761.6,3.621]
[1724510272193,0.06991598,2761.7,2761.6,3.621]
[1724510272498,0.06997985,2761.9,2761.5,3.62121]
[1724510272699,0.06753142,2761.7,2761.5,3.62121]
[1724510272994,3.62057,2762.0,2761.5,3.62121]
[1724510273190,0.06749948,2761.6,2761.5,3.62121]
[1724510273495,2.3432,2761.7,2761.5,3.62121]
[1724510273794,0.06749948,2761.6,2761.5,3.62121]
[1724510276905,2.3432,2761.9,2761.5,3.62121]
[1724510277051,0.06746072,2761.6,2761.5,3.62121]
[1724510277252,2.3432,2761.9,2761.5,3.62121]
[1724510277490,0.0675246,2761.8,2761.5,3.62121]
[1724510280899,0.0675246,2761.8,2761.4,1.26998251]
[1724510281837,0.0675246,2761.8,2761.4,4.89124251]
[1724510283835,0.0675246,2761.8,2761.4,3.62126]
[1724510284204,0.0675246,2761.8,2761.5,3.62121]
[1724510284734,0.0675246,2761.8,2761.6,3.62107]
[1724510285128,5.52074831,2762.0,2761.6,3.62107]
[1724510285311,0.06748297,2761.7,2761.6,3.62107]
[1724510285511,5.52074831,2762.0,2761.6,3.62107]
[1724510285718,7.63359635,2762.0,2761.6,3.62107]
[1724510285914,0.06754685,2761.9,2761.6,3.62107]
[1724510288239,0.06754685,2761.9,2761.8,8.51162251]
[1724510288415,9.2602778,2762.2,2761.8,4.89080251]
[1724510288603,0.06763496,2762.1,2761.8,4.89080251]
[1724510288807,1.9002778,2762.3,2761.8,4.89080251]
[1724510289029,0.06766689,2762.2,2761.8,4.89080251]
[1724510289408,0.06763496,2762.1,2761.8,4.89080251]
[1724510289627,1.9002778,2762.3,2761.8,4.89080251]
[1724510290003,5.5204878,2762.3,2761.8,3.62082]
[1724510290203,0.06766689,2762.2,2761.8,3.62082]
[1724510290630,5.5204878,2762.3,2761.8,3.62082]
[1724510290938,0.06766689,2762.2,2761.8,3.62082]
[1724510291141,6.89510792,2762.3,2761.8,3.62082]
[1724510291340,0.06772702,2762.1,2761.8,3.62082]
[1724510291640,0.06769509,2762.0,2761.8,3.62082]
[1724510291944,1.9002778,2762.2,2761.8,3.62082]
[1724510292144,0.06766316,2761.9,2761.8,3.62082]
[1724510292319,1.9002778,2762.2,2761.8,3.62082]
[1724510292521,0.06766316,2761.9,2761.8,3.62082]
[1724510292929,5.51955706,2762.3,2761.8,3.62082]
[1724510293135,0.06766316,2761.9,2761.8,3.62082]
[1724510293341,5.51955706,2762.3,2761.8,3.62082]
[1724510293516,0.06766316,2761.9,2761.8,3.62082]
[1724510293716,5.51955706,2762.3,2761.8,3.62082]
[1724510293940,0.06766316,2761.9,2761.8,3.62082]
[1724510294127,5.51955706,2762.3,2761.8,3.62082]
[1724510294327,0.06766316,2761.9,2761.8,3.62082]
[1724510294651,1.89934706,2762.3,2761.9,3.62068]
[1724510295854,0.06775896,2762.2,2761.9,3.62068]
[1724510296055,1.89934706,2762.3,2761.9,3.62068]
[1724510296361,0.06775896,2762.2,2761.9,3.62068]
[1724510296728,1.89934706,2762.3,2761.9,3.62068]
[1724510296929,0.06543774,2762.1,2761.9,3.62068]
[1724510297154,6.89395641,2762.3,2761.9,3.62068]
[1724510297322,0.06540581,2762.0,2761.9,3.62068]
[1724510297520,2.3253,2762.0,2761.5,3.0]
[1724510297761,6.01126581,2762.0,2761.5,3.62121]
[1724510299286,6.01126581,2762.0,2761.6,3.62108]
[1724510299984,0.06540581,2762.0,2761.8,3.62079]
[1724510300443,1.89883904,2762.2,2761.8,3.62079]
[1724510300767,1.89883904,2762.2,2761.8,7.24154]
[1724510300921,0.06539897,2762.1,2761.8,3.62074]
[1724510303042,3.62017,2762.3,2761.8,3.62074]
[1724510303473,0.06483757,2762.2,2761.8,3.62074]
[1724510303972,0.06483757,2762.2,2761.8,4.89072251]
[1724510303973,0.06480564,2762.1,2761.8,4.89072251]
[1724510304354,0.06480564,2762.1,2761.9,3.62062]
[1724510305564,0.06480564,2762.1,2761.8,4.89072251]
[1724510306594,0.06480564,2762.1,2761.9,3.62069]
[1724510311492,0.06480564,2762.1,2761.8,4.89079251]
[1724510311913,0.06480564,2762.1,2761.8,3.62081]
[1724510313203,1.89890081,2762.2,2761.8,3.62081]
[1724510313568,0.06270273,2762.1,2761.8,3.62081]
[1724510314874,0.06270273,2762.1,2761.8,3.62081]
[1724510318516,0.06266696,2762.0,2761.8,3.62081]
[1724510318722,5.51952021,2762.2,2761.8,3.62081]
[1724510319018,0.06229836,2761.9,2761.8,3.62081]
[1724510319225,5.51952021,2762.2,2761.8,3.62081]
[1724510319438,0.06229836,2761.9,2761.8,3.62081]
[1724510319608,5.51952021,2762.2,2761.8,3.62081]
[1724510319790,0.06229836,2761.9,2761.8,3.62081]
[1724510319992,5.51952021,2762.2,2761.8,3.62081]
[1724510320210,0.06229836,2761.9,2761.8,3.62081]
[1724510320415,5.51952021,2762.2,2761.8,3.62081]
[1724510320645,0.06229836,2761.9,2761.8,3.62081]
[1724510320852,5.51952021,2762.2,2761.8,3.62081]
[1724510321424,0.06236223,2762.1,2761.8,3.62081]
[1724510327399,1.89953247,2762.2,2761.8,3.62081]
[1724510327636,0.0623535,2762.0,2761.8,3.62081]
[1724510327795,1.89953247,2762.2,2761.8,3.62081]
[1724510327995,0.06232156,2761.9,2761.8,3.62081]
[1724510328197,1.89953247,2762.2,2761.8,3.62081]
[1724510328399,0.06232156,2761.9,2761.8,3.62081]
[1724510328631,1.89953247,2762.2,2761.8,3.62081]
[1724510328835,0.06232156,2761.9,2761.8,3.62081]
[1724510329320,1.89953247,2762.2,2761.8,3.62081]
[1724510329521,0.06238543,2762.1,2761.8,3.62076]
[1724510331517,0.06238543,2762.1,2761.8,7.24152]
[1724510332037,0.06238543,2762.1,2761.8,3.62076]
[1724510332248,0.06238543,2762.1,2762.0,3.62056]
[1724510332555,0.06238543,2762.1,2762.0,18.44812101]
[1724510332753,0.06238543,2762.1,2762.0,15.16748691]
[1724510332965,2.3452,2762.8,2762.3,3.62011]
[1724510333241,2.3452,2762.8,2762.3,4.89006251]
[1724510333399,0.05627392,2762.7,2762.5,3.61986]
[1724510333607,0.05627392,2762.7,2762.3,8.51013251]
[1724510333828,2.3452,2762.8,2762.4,3.62001]
[1724510334047,0.056242,2762.6,2762.4,3.62001]
[1724510334273,2.3452,2762.8,2762.4,3.62001]
[1724510334402,0.05621008,2762.5,2762.4,3.62001]
[1724510334724,2.3452,2762.8,2762.4,4.47101625]
[1724510334914,0.05627392,2762.7,2762.4,3.62001]
[1724510335115,2.3452,2762.8,2762.4,3.62001]
[1724510335336,0.05627392,2762.7,2762.4,3.62001]
[1724510335552,2.3452,2762.8,2762.4,3.62001]
[1724510335711,0.056242,2762.6,2762.4,3.62001]
[1724510336039,2.3452,2762.8,2762.4,4.47101625]
[1724510336243,0.05625835,2762.5,2762.4,4.47101625]
[1724510336425,2.3452,2762.8,2762.4,4.47101625]
[1724510336737,2.3452,2762.8,2762.4,3.62001]
[1724510336940,0.05632219,2762.7,2762.5,3.6199]
[1724510337459,2.3452,2763.0,2762.6,3.61977]
[1724510337819,2.3452,2763.0,2762.5,4.88979251]
[1724510338022,2.3452,2763.0,2762.5,3.61981]
[1724510338326,2.941633,2763.0,2762.5,3.61981]
[1724510339912,0.05666259,2762.9,2762.5,3.61981]
[1724510341646,0.05666259,2762.9,2762.6,3.61967]
[1724510343753,0.05666259,2762.9,2762.5,4.88979251]
[1724510343754,0.05666259,2762.9,2762.7,3.61964]
[1724510344363,5.96426,2763.2,2762.7,3.61964]
[1724510344565,0.05496446,2762.8,2762.7,3.61964]
[1724510344761,2.3452,2763.2,2762.8,3.61939]
[1724510345060,2.3452,2763.5,2763.0,3.61922]
[1724510346263,5.96381,2763.5,2763.0,3.61922]
[1724510346449,2.3452,2763.5,2763.1,3.61912]
[1724510347640,2.3058,2763.7,2763.1,4.88910251]
[1724510347950,0.0553275,2763.6,2763.1,5.25101451]
[1724510348558,0.0553275,2763.6,2763.2,3.61889]
[1724510352236,0.0553275,2763.6,2763.3,0.0723747]
[1724510352460,0.0553275,2763.6,2763.5,3.61859]
[1724510352772,2.3058,2763.9,2763.5,3.61859]
[1724510352979,0.05537231,2763.6,2763.5,3.61859]
[1724510353291,2.3058,2763.9,2763.4,3.61865]
[1724510353439,0.05535372,2763.6,2763.4,3.61865]
[1724510353768,0.05533557,2763.5,2763.4,7.2373]
[1724510353980,2.3058,2763.9,2763.5,3.61856]
[1724510354535,2.3058,2763.9,2763.6,3.61843]
[1724510355175,0.05547489,2763.8,2763.6,3.61843]
[1724510356083,0.05547489,2763.8,2763.6,7.23681]
[1724510356239,0.05547489,2763.8,2763.6,3.61838]
[1724510356442,0.05547489,2763.8,2763.5,3.61858]
[1724510356642,5.92375,2764.0,2763.5,3.61858]
[1724510357165,0.0555989,2763.9,2763.5,3.61858]
[1724510358339,0.0555989,2763.9,2763.5,3.61712185]
[1724510360680,0.0555989,2763.9,2763.6,3.61843]
[1724510363156,0.0555989,2763.9,2763.4,7.23724]
[1724510363804,2.3058,2763.8,2763.4,7.23724]
[1724510364451,0.05529236,2763.7,2763.5,3.61858]
[1724510364654,2.3058,2763.8,2763.5,3.61858]
[1724510365307,0.05529236,2763.7,2763.5,3.61858]
[1724510365653,2.3058,2763.8,2763.5,3.61858]
[1724510366314,0.05529236,2763.7,2763.5,3.61858]
[1724510366589,2.3058,2763.8,2763.5,3.61858]
[1724510366813,0.05526047,2763.6,2763.5,3.61858]
[1724510367020,2.3058,2763.8,2763.5,3.61858]
[1724510367227,0.05526047,2763.6,2763.5,3.61858]
[1724510367522,7.23578,2764.1,2763.4,3.6186]
[1724510367523,2.4846,2764.0,2763.6,3.61845]
[1724510367966,0.05534645,2763.9,2763.6,3.61845]
[1724510368893,3.67342645,2763.9,2763.4,3.6186]
[1724510369202,6.10282,2763.8,2763.3,3.61878]
[1724510369412,6.15813941,2763.8,2763.3,3.61878]
[1724510370966,6.15813941,2763.8,2763.2,3.6189]
[1724510370967,6.15813941,2763.8,2763.4,3.61873]
[1724510371172,2.4846,2763.7,2763.2,3.61887]
[1724510371402,2.4846,2763.6,2763.3,3.0]
[1724510371604,2.53981685,2763.6,2763.3,3.0]
[1724510374506,2.53981685,2763.6,2763.3,6.61884]
[1724510376417,2.53981685,2763.6,2763.4,3.61871]
[1724510377118,0.05521685,2763.6,2763.4,3.61862]
[1724510377518,2.4846,2763.9,2763.4,3.61862]
[1724510377715,0.0552917,2763.5,2763.4,3.61862]
[1724510377914,2.4846,2763.9,2763.5,3.61857]
[1724510378878,2.4846,2763.9,2763.6,3.61834]
[1724510379087,0.05552312,2763.8,2763.6,3.61834]
[1724510379761,0.05552312,2763.8,2763.7,3.61833]
[1724510382941,0.05552312,2763.8,2763.5,3.61847]
[1724510383318,0.05552312,2763.8,2763.6,3.61841]
[1724510384954,0.05552312,2763.8,2763.7,3.61833]
[1724510385352,4.38108745,2764.1,2763.7,3.61833]
[1724510385515,0.05547654,2763.8,2763.7,3.61833]
[1724510385719,4.38108745,2764.1,2763.7,3.61833]
[1724510385927,0.05547654,2763.8,2763.7,3.61833]
[1724510386129,4.38108745,2764.1,2763.7,3.61833]
[1724510386334,0.05547654,2763.8,2763.7,3.61833]
[1724510387147,4.38108745,2764.1,2763.7,3.61833]
[1724510387550,0.05554032,2764.0,2763.7,3.61833]
[1724510389456,1.95202777,2764.0,2763.6,3.61844]
[1724510390128,1.95202777,2764.0,2763.6,7.23682]
[1724510390355,1.95405416,2764.0,2763.6,3.61838]
[1724510391067,1.95405416,2764.0,2763.6,7.23677]
[1724510391367,1.95405416,2764.0,2763.6,3.61838]
[1724510391731,1.95405416,2764.0,2763.6,7.23678]
[1724510393027,1.95405416,2764.0,2763.7,3.61831]
[1724510395365,1.95536165,2764.0,2763.7,3.61831]
[1724510397453,1.89982133,2763.9,2763.7,3.61831]
[1724510397775,1.95540738,2763.9,2763.7,3.61831]
[1724510399973,0.05558605,2763.9,2763.7,3.61831]
[1724510400177,1.95594168,2763.9,2763.7,3.61831]
[1724510400347,1.90035563,2763.9,2763.7,3.61831]
[1724510400680,0.05555416,2763.8,2763.7,3.61831]
[1724510403132,1.90035563,2764.0,2763.7,3.61831]
[1724510403351,0.05555416,2763.8,2763.7,4.88829251]
[1724510403555,4.38495563,2764.1,2763.8,3.61812]
[1724510403738,9.50024,2764.3,2763.8,3.61812]
[1724510403964,1.90020399,2764.1,2763.8,3.61812]
[1724510404846,1.90020399,2764.1,2763.7,4.88831251]
[1724510405898,1.90020399,2764.1,2763.7,4.88824251]
[1724510406046,1.90020399,2764.1,2763.8,3.61815]
[1724510406248,0.05564385,2764.0,2763.8,3.61815]
[1724510406486,1.90020399,2764.2,2763.9,3.61806]
[1724510406885,1.90020399,2764.2,2764.0,3.61794]
[1724510407049,1.90020399,2764.3,2764.0,5.97854]
[1724510408558,1.8991343,2764.3,2764.0,5.97854]
[1724510408983,1.8991343,2764.4,2764.0,5.97854]
[1724510409292,1.8991343,2764.3,2764.0,5.97854]
[1724510409492,7.23472,2764.5,2764.0,5.97854]
[1724510409493,1.8991343,2764.4,2764.0,5.97854]
[1724510409966,0.05586068,2764.3,2764.0,5.97854]
[1724510411478,0.05586068,2764.3,2764.0,7.06519825]
[1724510411666,0.05586068,2764.3,2764.0,3.61794]
[1724510411845,1.95499498,2764.3,2763.9,4.88804251]
[1724510412242,0.05586068,2764.3,2763.9,4.88804251]
[1724510412583,2.3621,2764.2,2763.9,3.61806]
[1724510412886,0.05583838,2764.1,2763.9,3.61806]
[1724510413081,2.31793838,2764.2,2763.9,4.46868825]
[1724510413326,0.05394522,2764.0,2763.9,4.46868825]
[1724510413486,2.31793838,2764.2,2763.9,8.08674825]
[1724510413690,0.05394522,2764.0,2763.9,8.08674825]
[1724510413848,2.31793838,2764.2,2763.9,4.46868825]
[1724510414158,0.05394522,2764.0,2763.9,4.46868825]
[1724510414353,2.31793838,2764.2,2763.9,4.46868825]
[1724510414354,2.31793838,2764.2,2763.9,8.08668825]
[1724510414591,0.05394522,2764.0,2763.9,8.08668825]
[1724510414886,0.05394522,2764.0,2763.9,4.46862825]
[1724510415182,2.31793838,2764.2,2763.9,4.46862825]
[1724510415799,0.0539771,2764.1,2763.9,4.46862825]
[1724510416488,0.0539771,2764.1,2763.9,8.08663825]
[1724510416674,0.0539771,2764.1,2763.9,4.46862825]
[1724510417682,0.0539771,2764.1,2763.9,8.08662825]
[1724510418187,0.0539771,2764.1,2763.9,4.46862825]
[1724510418688,0.0539771,2764.1,2763.9,3.618]
[1724510418888,2.3621,2763.9,2763.4,7.45]
[1724510419088,2.3621,2763.6,2763.2,7.23783]
[1724510419256,2.3621,2763.6,2763.2,7.23782]
[1724510419586,0.05391175,2763.5,2763.3,0.723782]
[1724510419881,0.05391175,2763.5,2763.3,4.342632]
[1724510420461,0.05391175,2763.5,2763.4,3.61873]
[1724510420645,0.05391175,2763.5,2763.4,8.50744251]
[1724510420873,1.89829031,2764.0,2763.6,3.61837]
[1724510421077,1.89829031,2764.0,2763.6,8.50674251]
[1724510421690,1.89829031,2764.0,2763.6,4.88835251]
[1724510422085,0.05395208,2763.9,2763.6,4.88835251]
[1724510424924,0.05197642,2763.8,2763.6,4.88835251]
[1724510425309,1.80232596,2764.0,2763.6,4.88835251]
[1724510425514,1.80232596,2764.0,2763.6,3.61837]
[1724510425515,0.05194453,2763.7,2763.6,3.61837]
[1724510425713,1.80232596,2764.0,2763.6,3.61837]
[1724510425914,0.05194453,2763.7,2763.4,8.50722251]
[1724510426122,5.42027596,2764.0,2763.4,9.67347296]
[1724510426329,0.05191263,2763.6,2763.5,3.61858]
[1724510426530,5.42027596,2764.0,2763.5,3.61858]
[1724510426691,0.05191263,2763.6,2763.5,3.61858]
[1724510427223,5.42027596,2764.0,2763.5,3.61858]
[1724510427428,0.05191263,2763.6,2763.5,3.61858]
[1724510427719,3.61795,2764.0,2763.5,3.61858]
[1724510427931,0.05191263,2763.6,2763.4,1.26998251]
[1724510428223,0.05188074,2763.5,2763.4,5.69310296]
[1724510428422,2.4111,2763.8,2763.4,5.69310296]
[1724510428731,0.05188074,2763.5,2763.4,3.61872]
[1724510428892,2.4111,2763.8,2763.4,3.61872]
[1724510429445,0.05194453,2763.7,2763.4,3.61872]
[1724510429660,2.4111,2763.8,2763.4,3.61872]
[1724510429933,0.05191263,2763.6,2763.4,3.61872]
[1724510430094,2.4111,2763.8,2763.4,3.61872]
[1724510430295,0.05188074,2763.5,2763.4,3.61872]
[1724510430509,2.4111,2763.8,2763.4,4.46946425]
[1724510430702,0.05188074,2763.5,2763.2,4.88893251]
[1724510431025,6.02932,2763.8,2763.2,8.50779251]
[1724510431026,0.05184884,2763.4,2763.2,8.50779251]
[1724510431212,6.02932,2763.8,2763.2,4.88888251]
[1724510431418,0.05181694,2763.3,2763.2,4.88888251]
[1724510431622,6.02932,2763.8,2763.3,3.61885]
[1724510432833,0.08801357,2763.7,2763.3,3.61885]
[1724510433130,6.02932,2763.8,2763.3,4.76963525]
[1724510433321,0.08798298,2763.6,2763.3,4.76963525]
[1724510433516,0.08801357,2763.7,2763.3,4.76963525]
[1724510433704,0.08795239,2763.5,2763.3,4.76963525]
[1724510434036,0.0879218,2763.4,2763.3,4.76963525]
[1724510434338,6.02932,2763.8,2763.3,8.38842525]
[1724510434835,0.08801357,2763.7,2763.3,7.23764]
[1724510435031,6.02932,2763.8,2763.3,7.23764]
[1724510435235,0.08798298,2763.6,2763.3,7.23764]
[1724510435438,6.02932,2763.8,2763.3,7.23764]
[1724510435735,0.08795239,2763.5,2763.3,7.23764]
[1724510435984,6.02932,2763.8,2763.4,3.61872]
[1724510436237,6.02932,2763.8,2763.5,3.61857]
[1724510436238,2.4111,2763.8,2763.5,3.61857]